Cogmind - Beta 14 @@@ ROGUE MODE // 2024.10.22 @ 16:29:18 Player: WazdakkaGutsmek Result: Destroyed by G-67 Veteran with Plasma Rifle Performance ------------- Evolutions (5) 2500 Regions Visited (13) 2600 Robots Destroyed (202) 1010 Value Destroyed (7911) 7911 Prototype IDs (29) 580 Alien Tech Used (0) 0 Bonus (4894) 4894 TOTAL SCORE: 19495 Bonus ------- High Alert Combat Kills 1928 Follower Combat Kills 133 Entered Garrisons 600 Used RIF Installer 2000 Aligned with FarCom 300 Friendly Fire -67 Cogmind --------- Core Integrity 0/1000 Matter 300/300 Energy 100/100 System Corruption 5% Temperature Cool (0) Movement Core (50) Location -5/Factory Parts ------- > --- POWER (1) -------- (None) > --- PROPULSION (4) --- (None) > --- UTILITY (8) ------ (None) > --- WEAPON (4) ------- (None) > --- INVENTORY (5) ---- Improved Hacking Suite Remote Datajack Peak State ------------ > --- POWER ------------ Neutrino Core > --- PROPULSION ------- Improved Heavy Treads Improved Heavy Treads > --- UTILITY ---------- Advanced Heat Sink Coolant Injector High-capacity Storage Unit Core Analyzer Improved Transmission Jammer Improved Light Armor Plating Improved Heavy Armor Plating > --- WEAPON ----------- Quantum Rifle Improved Heavy Machine Gun Heavy Mass Driver > --- INVENTORY -------- Armored Treads Advanced Treads Advanced Treads Improved Heavy Treads Improved Heat Sink Advanced Heat Sink Improved Hacking Suite Relay Coupler [Grunt] Heavy Laser Improved Heavy Machine Gun Enhanced Gauss Cannon Mini Grenade Launcher Remote Datajack [Rating: 99] Favorites ----------- Power Ion Engine Engine Ion Engine Power Core Neutrino Core Reactor Cold Fusion Reactor Propulsion Advanced Treads Treads Advanced Treads Leg Aluminum Leg Wheel Armored Huge Wheel Utility High-capacity Storage Unit Device Advanced Heat Sink Storage High-capacity Storage Unit Processor Core Analyzer Hackware Relay Coupler [Grunt] Protection Hardened Medium Armor Plating Weapon XL Autogun Array Energy Gun Quantum Rifle Energy Cannon EM Pulse Cannon Ballistic Gun XL Autogun Array Ballistic Cannon Heavy Mass Driver Launcher Long-range Missile Launcher Special Weapon Remote Datajack Build | -11 -10 -10 -9 -9 -9 -8 -8 -8 -7 -7 -6 -6 -5 ------- Run | Yrd Mat Min Mat Min Exi Min Mat Gar Fac Gar Fac Gar Fac Slots Evolved 10 | . . . 2 . . . 2 . 2 . 2 . 2 Power . | . . . . . . . . . . . . . . Propulsion 2 | . . . . . . . . . 2 . . . . Utility 6 | . . . 2 . . . . . . . 2 . 2 Weapon 2 | . . . . . . . 2 . . . . . . Parts Attached 95 | . 10 2 13 2 2 1 2 1 4 12 6 13 27 Power 8 | . 2 . . 1 . . 1 . 1 . 1 1 1 Engine 6 | . 2 . . 1 . . 1 . 1 . . . 1 Core 1 | . . . . . . . . . . . . 1 . Reactor 1 | . . . . . . . . . . . 1 . . Propulsion 21 | . . 2 6 . . . . . 2 2 2 4 3 Treads 20 | . . 2 6 . . . . . 2 2 2 4 2 Leg . | . . . . . . . . . . . . . . Wheel 1 | . . . . . . . . . . . . . 1 Hover . | . . . . . . . . . . . . . . Flight . | . . . . . . . . . . . . . . Utility 30 | . 2 . 4 1 2 . . 1 1 6 3 2 8 Device 11 | . . . 1 1 . . . 1 1 5 . . 2 Storage 1 | . 1 . . . . . . . . . . . . Processor 2 | . . . . . . . . . . . . . 2 Hackware 2 | . . . . . . . . . . 1 . . 1 Protection 14 | . 1 . 3 . 2 . . . . . 3 2 3 Artifact . | . . . . . . . . . . . . . . Weapon 36 | . 6 . 3 . . 1 1 . . 4 . 6 15 Energy Gun 8 | . 1 . . . . . . . . . . 1 6 Energy Cannon 2 | . . . 2 . . . . . . . . . . Ballistic Gun 11 | . 4 . 1 . . . 1 . . 2 . . 3 Ballistic Cannon 6 | . . . . . . . . . . . . 3 3 Launcher 5 | . 1 . . . . 1 . . . . . 2 1 Special Weapon 4 | . . . . . . . . . . 2 . . 2 Impact Weapon . | . . . . . . . . . . . . . . Slashing Weapon . | . . . . . . . . . . . . . . Piercing Weapon . | . . . . . . . . . . . . . . Special Melee Weapon . | . . . . . . . . . . . . . . Unidentified Prototypes 4 | . . . . . . . . . . 1 1 . 2 Corrupted Parts 1 | . . . . . . . . . . 1 . . . System Corruption 9 | . . . . . . . . . . 9 . . . Parts Lost 16 | . 1 3 . . . . . . . . . 2 10 Power 2 | . . . . . . . . . . . . . 2 Propulsion 1 | . . 1 . . . . . . . . . . . Utility 6 | . . 1 . . . . . . . . . 2 3 Weapon 7 | . 1 1 . . . . . . . . . . 5 Highest Loss Streak 5 | . 1 1 . . . . . . . . . 2 5 To Critical Strikes . | . . . . . . . . . . . . . . Average Slot Usage (%) 78 | . 90 88 94 100 100 100 72 72 75 69 59 64 65 Engine 7 | . 14 14 11 11 11 11 9 9 7 7 1 . . Core 1 | . . . . . . . . . . . . 5 3 Treads 17 | . . 26 22 22 22 22 18 18 29 25 20 17 6 Leg 3 | . 28 1 . . . . . . . . . . . Device 7 | . . . 8 11 11 11 9 9 7 5 6 6 14 Storage 8 | . 14 14 11 11 11 11 9 9 7 7 6 6 4 Protection 14 | . 6 5 20 22 22 22 18 18 15 15 12 12 6 Energy Gun 2 | . 11 . . . . . . . . . . 2 7 Energy Cannon 4 | . . . 16 22 22 11 . . . . . . . Ballistic Gun 6 | . 14 27 5 . . . 9 9 7 6 6 2 3 Peak Build Rating 99 | . 8 7 23 24 29 29 58 60 65 80 96 97 99 Average Rating 50 | . 6 6 18 23 26 28 56 59 63 70 88 86 77 On Entrance 40 | 6 6 7 5 23 24 29 28 58 60 65 80 96 82 Naked Turns 129 | . . . . . . . . . . . . . 129 Heaviest Build 125 | 12 52 52 69 69 74 74 79 77 82 82 98 125 109 Greatest Support 150 | 20 20 40 46 44 44 44 44 44 90 125 125 150 150 Greatest Overweight (x) 5 | . 2 5 1 1 1 1 1 1 . 1 1 1 3 Average Overweight (x) . | . 1 1 1 1 1 1 1 1 . . . . 1 Largest Inventory Capacity 20 | . 20 20 20 20 20 20 20 20 20 20 20 20 20 Average Capacity 19 | . 19 20 20 20 20 20 20 20 20 20 20 20 18 Most Carried 20 | . 10 8 20 20 20 20 20 20 20 20 20 20 20 Average Carried 16 | . 7 6 14 19 19 20 18 20 19 19 19 15 13 Final Capacity 20 | 8 20 20 20 20 20 20 20 20 20 20 20 20 5 Final Carried 20 | 6 8 6 19 19 20 20 20 20 20 20 20 12 2 Class Distribution -------------------- 44% | Tank 41% | Mutant 7% | Scavenger-Tank 4% | Scavenger-Skirmisher Dominant Class ---------------- Mutant | -10/Materials Mutant | -10/Mines Mutant | -9/Materials Mutant | -9/Mines Mutant | -9/Exiles Mutant | -8/Mines Tank | -8/Materials Tank | -8/Garrison Tank | -7/Factory Tank | -7/Garrison Tank | -6/Factory Tank | -6/Garrison Scavenger-Skirmisher | -5/Factory Resources | -11 -10 -10 -9 -9 -9 -8 -8 -8 -7 -7 -6 -6 -5 ----------- Run | Yrd Mat Min Mat Min Exi Min Mat Gar Fac Gar Fac Gar Fac Matter Collected 6226 | 200 255 88 171 20 . . 52 848 262 948 534 1483 1365 Remotely . | . . . . . . . . . . . . . . Salvage Created 10377 | . 434 92 1363 129 . . 52 1258 439 1344 767 1974 2525 Parts 448 | . 45 7 73 8 . . 5 61 19 45 31 72 82 Haulers Intercepted 13 | . 2 . 5 . . . . . 1 . 1 . 4 Recyclers Shooed 6 | . 1 . 1 . . . . . . . . . 4 Parts Field Recycled . | . . . . . . . . . . . . . . Retrieved Matter . | . . . . . . . . . . . . . . Parts Self-Destructed . | . . . . . . . . . . . . . . Prevented . | . . . . . . . . . . . . . . Kills | -11 -10 -10 -9 -9 -9 -8 -8 -8 -7 -7 -6 -6 -5 ------- Run | Yrd Mat Min Mat Min Exi Min Mat Gar Fac Gar Fac Gar Fac Combat Hostiles Destroyed 161 | . 13 6 27 3 . . 1 24 6 12 10 32 27 Guns 93 | . 7 6 4 . . . 1 24 6 12 10 10 13 Cannons 39 | . . . 13 3 . . . . . . . 12 11 AOE 28 | . 6 . 10 . . . . . . . . 10 2 Classes Destroyed 18 | . 5 1 3 1 . . . . 2 1 1 3 1 Worker 3 | . 2 . . . . . . . . . . . 1 Builder 3 | . . . . . . . . . . . . . 3 Hauler 13 | . 2 . 5 . . . . . 1 . 1 . 4 Recycler 11 | . . . 1 . . . . . 1 . 1 . 8 Mechanic 2 | . . . . . . . . . . . . 1 1 Watcher 12 | . 2 . 5 . . . . . . . 2 1 2 Swarmer 41 | . 8 3 7 . . . . . . 3 4 12 4 Grunt 65 | . 5 . 13 2 . . . 15 3 4 3 9 11 Brawler 4 | . . . . 1 . . . 2 . . . . 1 Duelist 8 | . . . 2 . . . . 2 . 2 1 . 1 Protector 2 | . . . . . . . . . . . . 1 1 Sentry 15 | . . . 5 . . . 1 5 1 1 1 . 1 Specialist 7 | . . . . . . . . . . 2 . 5 . Hunter 6 | . . . . . . . . . 1 . . 2 3 Programmer 7 | . . . . . . . . . 1 . . 2 4 Heavy 2 | . . . . . . . . . . . 1 . 1 Behemoth 1 | . . . . . . . . . . . . 1 . Assembled 3 | . . 3 . . . . . . . . . . . Best Kill Streak 9 | . 9 3 8 3 . . 1 4 4 5 5 9 7 Combat Bots Only 9 | . 7 3 8 3 . . 1 4 3 5 4 9 4 Max Kills in Single Turn 5 | . 2 2 5 1 . . 1 1 2 1 1 5 4 Gunslinging 2 | . . 1 . . . . . . . . . . 2 Exploded 5 | . 2 . 5 . . . . . . . . 3 2 Melee . | . . . . . . . . . . . . . . Uniques/NPCs Destroyed . | . . . . . . . . . . . . . . Combat | -11 -10 -10 -9 -9 -9 -8 -8 -8 -7 -7 -6 -6 -5 -------- Run | Yrd Mat Min Mat Min Exi Min Mat Gar Fac Gar Fac Gar Fac Hostile Shots Fired 717 | . 81 21 72 2 . . . 23 22 20 37 203 236 Missed 216 | . 19 4 18 1 . . . 7 11 9 16 59 72 Damage Taken 8209 | . 583 248 689 10 . . . 338 144 146 267 2451 3333 Core 1329 | . 88 21 63 . . . . 30 16 5 26 60 1020 Absorbed by Shields . | . . . . . . . . . . . . . . Regen/Repaired (Parts) 39 | . 39 . . . . . . . . . . . . Core Remaining (%) 86 | 100 . 56 . . . 84 . 94 . 97 . 89 . Volleys Fired 465 | . 36 13 68 5 . . 1 55 16 64 31 80 96 Largest 4 | . 2 2 2 2 . . 1 1 1 1 1 3 4 Hottest 248 | . 80 40 131 131 . . 60 60 60 60 60 212 248 Shots Fired 781 | . 72 26 127 10 . . 1 55 16 64 31 116 263 Gun 536 | . 68 26 41 . . . 1 55 16 47 31 68 183 Cannon 205 | . . . 86 10 . . . . . . . 39 70 Launcher 17 | . 4 . . . . . . . . . . 9 4 Special 23 | . . . . . . . . . . 17 . . 6 Kinetic 475 | . 43 26 41 . . . 1 55 16 47 31 92 123 Thermal 170 | . . . 26 5 . . . . . . . 15 124 Explosive 17 | . 4 . . . . . . . . . . 9 4 Electromagnetic 96 | . 25 . 60 5 . . . . . . . . 6 Robot Hit Streak 67 | . 12 5 12 3 . . 7 13 8 67 8 47 15 Robot Miss Streak 9 | . 4 3 5 3 . . . 5 9 4 6 4 5 Penetration Max 1 | . . . . . . . . . . . . 1 1 Secondary Targets 7 | . 2 2 . . . . . . . . . . 3 Max Gunslinging Chain 2 | . 1 1 . . . . . . . . . . 2 Shots Hit Robots 514 | . 38 13 73 4 . . 1 46 14 58 30 84 153 Core Hits 387 | . 25 9 45 3 . . 1 42 13 51 25 95 78 Critical Kills 1 | . 1 . . . . . . . . . . . . Critical Parts Destroyed 1 | . 1 . . . . . . . . . . . . Critical Strikes 15 | . 2 . 2 . . . . . . . . 2 9 Burn 2 | . . . . . . . . . . . . . 2 Destroy 2 | . 2 . . . . . . . . . . . . Blast 9 | . . . . . . . . . . . . 2 7 Corrupt 2 | . . . 2 . . . . . . . . . . Melee Attacks . | . . . . . . . . . . . . . . Impact . | . . . . . . . . . . . . . . Slashing . | . . . . . . . . . . . . . . Piercing . | . . . . . . . . . . . . . . Sneak Attacks . | . . . . . . . . . . . . . . Combat Hostiles . | . . . . . . . . . . . . . . Follow-up Attacks . | . . . . . . . . . . . . . . Damage Inflicted 25268 | . 906 165 2529 109 . . 41 2509 889 2968 1644 6781 6727 Guns 15318 | . 510 165 175 . . . 41 2509 889 2968 1644 3585 2832 Cannons 5832 | . . . 1331 109 . . . . . . . 1385 3007 Explosions 4060 | . 396 . 1021 . . . . . . . . 1809 834 Melee . | . . . . . . . . . . . . . . Ramming 58 | . . . 2 . . . . . . . . 2 54 Kinetic 17280 | . 346 165 175 . . . 41 2509 889 2968 1644 4686 3857 Thermal 3416 | . . . 1225 41 . . . . . . . 284 1866 Explosive 3039 | . 396 . . . . . . . . . . 1809 834 Electromagnetic 1475 | . 164 . 1127 68 . . . . . . . . 116 Impact . | . . . . . . . . . . . . . . Slashing . | . . . . . . . . . . . . . . Piercing . | . . . . . . . . . . . . . . Highest Corruption 10 | . . . . . . . . . 1 10 . 1 5 Average Corruption 2 | . . . . . . . . . 1 2 . 1 3 Corruption Purged 5 | . . . . . . . . . . 5 . . . Corruption Blocked . | . . . . . . . . . . . . . . Effects 35 | . . . . . . . . . 1 16 . 3 15 Message Errors 8 | . . . . . . . . . . 4 . . 4 Matter Fused 8 | . . . . . . . . . 1 3 . . 4 Heat Flow Errors 6 | . . . . . . . . . . 1 . 2 3 Energy Discharges 3 | . . . . . . . . . . 3 . . . Parts Rejected 1 | . . . . . . . . . . . . . 1 Data Loss (minor) 6 | . . . . . . . . . . 3 . 1 2 Data Loss (major) 1 | . . . . . . . . . . 1 . . . Alerts 1 | . . . . . . . . . . 1 . . . Weapon Failures 1 | . . . . . . . . . . . . . 1 Overload Shots . | . . . . . . . . . . . . . . Overflow Damage 752 | . 10 . 105 . . . . . . . . 141 496 Projectiles 637 | . . . 32 . . . . . . . . 124 481 Explosions 115 | . 10 . 73 . . . . . . . . 17 15 Melee . | . . . . . . . . . . . . . . Knockbacks 16 | . . . . . . . . . . . . 9 7 Impact 1 | . . . . . . . . . . . . . 1 Kinetic 13 | . . . . . . . . . . . . 7 6 Secondary 2 | . . . . . . . . . . . . 2 . Self-Inflicted Damage 136 | . 14 . 55 . . . . . . . . . 67 Shots 4 | . 1 . 2 . . . . . . . . . 1 Rammed 13 | . . . 1 . . . . . . . . 1 11 Targets Rammed 13 | . . . 1 . . . . . . . . 1 11 Kicked . | . . . . . . . . . . . . . . Crushed . | . . . . . . . . . . . . . . Highest Temperature 379 | . 122 48 302 276 . . 35 297 186 379 107 347 358 Average Temperature 85 | . 41 25 97 144 . . 23 76 67 107 35 84 85 Received Heat Transfer 1493 | . 114 100 165 6 . . . 117 39 15 58 318 561 Effects 10 | . . . 4 3 . . . 1 . 1 . . 1 Energy Bleed 1 | . . . . . . . . 1 . . . . . Interference 7 | . . . 4 3 . . . . . . . . . Matter Decay 2 | . . . . . . . . . . 1 . . 1 Siege Activations . | . . . . . . . . . . . . . . Robots Corrupted . | . . . . . . . . . . . . . . Combat Hostiles . | . . . . . . . . . . . . . . Parts Fried 4 | . . . 4 . . . . . . . . . . Impact Corruptions . | . . . . . . . . . . . . . . Robots Melted 1 | . . . . . . . . . . . . . 1 Combat Hostiles 1 | . . . . . . . . . . . . . 1 Parts Melted 4 | . . . . . . . . . . . . . 4 Heat Transferred 4383 | . . . 1370 74 . . . . . . . 352 2587 Parts Sabotaged 2 | . . . . . . . . . . . 1 1 . Parts Stolen . | . . . . . . . . . . . . . . Parts Stripped . | . . . . . . . . . . . . . . Power Chain Reactions 5 | . . . 5 . . . . . . . . . . Alert | -11 -10 -10 -9 -9 -9 -8 -8 -8 -7 -7 -6 -6 -5 ------- Run | Yrd Mat Min Mat Min Exi Min Mat Gar Fac Gar Fac Gar Fac Peak Influence 1447 | . 283 141 514 162 . . 45 679 399 1061 585 1366 1447 Initial 716 | . . 66 46 92 . . . 29 356 250 556 253 716 Average 463 | . 98 133 337 80 . . 33 308 301 681 514 843 1105 Maximum Alert Level 4 | . 1 . 2 . . . . 2 1 3 2 4 4 Low Security (%) 31 | . 74 100 18 100 . 100 100 41 32 . . . . Level 1 20 | . 25 . 29 . . . . 24 67 10 14 21 . Level 2 25 | . . . 52 . . . . 34 . 39 85 17 . Level 3 12 | . . . . . . . . . . 49 . 18 49 Level 4 10 | . . . . . . . . . . . . 42 50 Level 5 . | . . . . . . . . . . . . . . High Security . | . . . . . . . . . . . . . . Max Security . | . . . . . . . . . . . . . . Squads Dispatched 24 | . 4 . 4 . . . . . 4 . 1 . 11 Investigation 2 | . 1 . 1 . . . . . . . . . . Extermination 4 | . . . . . . . . . 1 . . . 3 Reinforcement 13 | . 3 . 3 . . . . . 2 . . . 5 Assault 4 | . . . . . . . . . . . 1 . 3 Garrison 1 | . . . . . . . . . 1 . . . . Intercept . | . . . . . . . . . . . . . . Searches Triggered . | . . . . . . . . . . . . . . Construction Impeded 2 | . . . 1 . . . . . . . . . 1 Haulers Reinforced 3 | . . . . . . . . . 1 . . . 2 Active Scanning Responses . | . . . . . . . . . . . . . . Cargo Convoy Interrupts 1 | . . . . . . . . . . . . . 1 Stealth | -11 -10 -10 -9 -9 -9 -8 -8 -8 -7 -7 -6 -6 -5 --------- Run | Yrd Mat Min Mat Min Exi Min Mat Gar Fac Gar Fac Gar Fac Distress Signals 8 | . 2 . . . . . 1 . 1 . . 1 3 Communications Jammed 32 | . . . . . . . . . . . . . 32 Distress Signals 32 | . . . . . . . . . . . . . 32 Times Spotted 245 | . 23 6 35 3 . . 2 23 9 15 17 43 69 Peak Tracking Total 14 | . 6 2 5 3 . . 2 3 4 6 5 14 12 Tactical Retreats 23 | . 1 . 7 . . . . . . 1 1 9 4 Traps | -11 -10 -10 -9 -9 -9 -8 -8 -8 -7 -7 -6 -6 -5 ------- Run | Yrd Mat Min Mat Min Exi Min Mat Gar Fac Gar Fac Gar Fac Traps Triggered 15 | . 1 . 1 . . . . 4 1 1 1 3 3 Indirectly . | . . . . . . . . . . . . . . Trap Hack Attempts . | . . . . . . . . . . . . . . Triggered . | . . . . . . . . . . . . . . Disarmed . | . . . . . . . . . . . . . . Reprogrammed . | . . . . . . . . . . . . . . Reused . | . . . . . . . . . . . . . . Traps Extracted . | . . . . . . . . . . . . . . Installed . | . . . . . . . . . . . . . . Triggered 1 | . . . . . . . . . . . . . 1 Machines | -11 -10 -10 -9 -9 -9 -8 -8 -8 -7 -7 -6 -6 -5 ---------- Run | Yrd Mat Min Mat Min Exi Min Mat Gar Fac Gar Fac Gar Fac Machines Disabled 22 | . 1 . 9 . . . . . . 2 1 3 6 Max in Single Turn 6 | . 1 . 6 . . . . . . 1 1 1 2 Garrison Access 1 | . . . . . . . . . . . . . 1 Garrison Relay 4 | . . . . . . . . . . 3 . 1 . Machines Repaired . | . . . . . . . . . . . . . . Machines Dismantled . | . . . . . . . . . . . . . . Machines Sabotaged . | . . . . . . . . . . . . . . Overloaded Fab Kills . | . . . . . . . . . . . . . . Hacking | -11 -10 -10 -9 -9 -9 -8 -8 -8 -7 -7 -6 -6 -5 --------- Run | Yrd Mat Min Mat Min Exi Min Mat Gar Fac Gar Fac Gar Fac Machines Accessed 33 | . 9 . 5 . 1 . 2 1 4 1 5 . 5 Terminals 17 | . 7 . 4 . . . 1 1 . 1 1 . 2 Fabricators 6 | . . . . . . . . . 3 . 2 . 1 Repair Stations 1 | . 1 . . . . . . . . . . . . Recycling Units 4 | . 1 . 1 . . . . . . . 1 . 1 Scanalyzers . | . . . . . . . . . . . . . . Garrison Access 4 | . . . . . . . 1 . 1 . 1 . 1 Total Hacks 67 | . 19 . 20 . 1 . 3 1 5 1 9 . 8 Successful 33 | . 12 . 6 . 1 . 1 . 4 1 6 . 2 Failed 34 | . 7 . 14 . . . 2 1 1 . 3 . 6 Catastrophic 5 | . . . 1 . . . . 1 . . . . 3 Database Lockouts . | . . . . . . . . . . . . . . Manual 32 | . 14 . 4 . 1 . . 1 4 . 6 . 2 Terminals 45 | . 16 . 17 . . . 2 1 . 1 4 . 4 Fabricators 7 | . . . . . . . . . 4 . 2 . 1 Repair Stations 2 | . 2 . . . . . . . . . . . . Recycling Units 8 | . 1 . 3 . . . . . . . 2 . 2 Scanalyzers . | . . . . . . . . . . . . . . Garrison Access 4 | . . . . . . . 1 . 1 . 1 . 1 Terminal Hacks 8 | . 1 . 4 . 1 . . . . 1 1 . . Prototype ID Bank 1 | . 1 . . . . . . . . . . . . Alert Level 1 | . . . 1 . . . . . . . . . . Unreport Threat 4 | . . . 3 . . . . . . . 1 . . Garrison Registry 1 | . . . . . . . . . . 1 . . . Derelict Proto ID Bank 1 | . . . . . 1 . . . . . . . . Fabricator Hacks . | . . . . . . . . . . . . . . Repair Station Hacks 2 | . 2 . . . . . . . . . . . . Scan Component 1 | . 1 . . . . . . . . . . . . Repair 1 | . 1 . . . . . . . . . . . . Recycling Unit Hacks 3 | . 1 . 1 . . . . . . . 1 . . Retrieve Components 3 | . 1 . 1 . . . . . . . 1 . . Scanalyzer . | . . . . . . . . . . . . . . Garrison Access Hacks 4 | . . . . . . . 1 . 1 . 1 . 1 Unlock Access 3 | . . . . . . . 1 . 1 . 1 . . Seal Access 1 | . . . . . . . . . . . . . 1 Unauthorized Hacks 16 | . 8 . 1 . . . . . 3 . 3 . 1 Terminals 10 | . 8 . 1 . . . . . . . 1 . . Botnet 3 | . 1 . 1 . . . . . . . 1 . . Skim 7 | . 7 . . . . . . . . . . . . Fabricators 6 | . . . . . . . . . 3 . 2 . 1 Liberate 6 | . . . . . . . . . 3 . 2 . 1 Repair Stations . | . . . . . . . . . . . . . . Recycling Units . | . . . . . . . . . . . . . . Scanalyzers . | . . . . . . . . . . . . . . Garrison Access . | . . . . . . . . . . . . . . Data Cores Recovered . | . . . . . . . . . . . . . . Used . | . . . . . . . . . . . . . . Hacking Detections 22 | . 7 . 4 . . . 1 1 2 . 4 . 3 Full Trace Events . | . . . . . . . . . . . . . . Feedback Events . | . . . . . . . . . . . . . . Feedback Blocked . | . . . . . . . . . . . . . . Robot Schematics Acquired . | . . . . . . . . . . . . . . Robots Built . | . . . . . . . . . . . . . . Authchips . | . . . . . . . . . . . . . . Time . | . . . . . . . . . . . . . . Total Robot Build Rating . | . . . . . . . . . . . . . . Part Schematics Acquired . | . . . . . . . . . . . . . . Parts Built . | . . . . . . . . . . . . . . Authchips . | . . . . . . . . . . . . . . Time . | . . . . . . . . . . . . . . Total Part Build Rating . | . . . . . . . . . . . . . . Parts Repaired 1 | . 1 . . . . . . . . . . . . Time 26 | . 26 . . . . . . . . . . . . Parts Recycled . | . . . . . . . . . . . . . . Recycled Matter . | . . . . . . . . . . . . . . Retrieved Matter . | . . . . . . . . . . . . . . Retrieved Components 13 | . . . 3 . . . . . . . 10 . . Parts Scanalyzed . | . . . . . . . . . . . . . . Part Schematics Acquired . | . . . . . . . . . . . . . . Parts Damaged . | . . . . . . . . . . . . . . Bothacking | -11 -10 -10 -9 -9 -9 -8 -8 -8 -7 -7 -6 -6 -5 ------------ Run | Yrd Mat Min Mat Min Exi Min Mat Gar Fac Gar Fac Gar Fac Used RIF Installer 4 | . . . . . . . . 2 . 1 . 1 . Zone Cloak 1 | . . . . . . . . . . 1 . . . Watcher Feeds 1 | . . . . . . . . . . . . 1 . Alert ID Control 1 | . . . . . . . . 1 . . . . . Robots Hacked 3 | . . . . . . . . . . . . . 3 Non-combat . | . . . . . . . . . . . . . . Combat 3 | . . . . . . . . . . . . . 3 Robot Hacks Applied 3 | . . . . . . . . . . . . . 3 amplify_resonance 1 | . . . . . . . . . . . . . 1 go_dormant 1 | . . . . . . . . . . . . . 1 formatsys_high 1 | . . . . . . . . . . . . . 1 Relay Couplers Released 20 | . . . . . . . . . . 16 . 4 . Machine Destruction 16 | . . . . . . . . . . 12 . 4 . Programmers 4 | . . . . . . . . . . 4 . . . Attached 2 | . . . . . . . . . . 1 . . 1 Fabnet Peak Effective % . | . . . . . . . . . . . . . . Robots Rewired 6 | . . . . . . . . . . 6 . . . Allies Hacked . | . . . . . . . . . . . . . . Hacks Repelled . | . . . . . . . . . . . . . . Allies | -11 -10 -10 -9 -9 -9 -8 -8 -8 -7 -7 -6 -6 -5 -------- Run | Yrd Mat Min Mat Min Exi Min Mat Gar Fac Gar Fac Gar Fac Total Allies 7 | . . . . . . . . . . 6 . . 1 Largest Group 3 | . . . . . . . . . . 3 3 . 1 Highest-Rated Group 90 | . . . . . . . . . . 90 90 . 29 Highest-Rated Ally 31 | . . . . . . . . . . 31 30 . 29 Total Orders . | . . . . . . . . . . . . . . Ally Attacks 32 | . . . . . . . . . . 23 4 . 5 Total Damage 588 | . . . . . . . . . . 442 52 . 94 Kills 4 | . . . . . . . . . . 4 . . . Allies Corrupted 1 | . . . . . . . . . . . 1 . . Allies Melted . | . . . . . . . . . . . . . . Intel | -11 -10 -10 -9 -9 -9 -8 -8 -8 -7 -7 -6 -6 -5 ------- Run | Yrd Mat Min Mat Min Exi Min Mat Gar Fac Gar Fac Gar Fac Robot Analysis Total . | . . . . . . . . . . . . . . Derelict Logs Recovered 1 | . . . . 1 . . . . . . . . . Drone Launches . | . . . . . . . . . . . . . . Drone Recoveries . | . . . . . . . . . . . . . . Exploration | -11 -10 -10 -9 -9 -9 -8 -8 -8 -7 -7 -6 -6 -5 ------------- Run | Yrd Mat Min Mat Min Exi Min Mat Gar Fac Gar Fac Gar Fac Turns Passed 12257 | . 1353 279 1796 751 473 310 114 1582 793 1110 947 1461 1288 Spaces Moved 5479 | 1 393 94 633 323 209 127 42 635 435 588 538 760 701 Core 229 | . . . . . . . . . . . . . 229 Treads 4544 | . . 92 633 323 209 127 42 635 435 588 538 760 162 Legs 396 | 1 393 2 . . . . . . . . . . . Wheels 310 | . . . . . . . . . . . . . 310 Hover . | . . . . . . . . . . . . . . Flight . | . . . . . . . . . . . . . . Fastest Speed 50 | 120 120 240 225 225 225 225 225 225 152 152 155 158 50 Average Speed 185 | 120 245 244 233 225 225 225 225 225 152 154 155 165 115 Slowest Speed 470 | 120 260 470 240 225 225 225 225 225 152 232 232 238 330 Overloaded Moves . | . . . . . . . . . . . . . . Propulsion Burnouts . | . . . . . . . . . . . . . . Robots Hopped . | . . . . . . . . . . . . . . Cave-ins Triggered . | . . . . . . . . . . . . . . Exploration Rate (%) 41 | 2 58 31 55 86 62 48 9 56 10 78 15 45 20 Regions Visited 13 Branch Regions 4 Pre-discovered Areas 3 | . 2 . . 1 . . . . . . . . . Known Exits Taken 4 | . . 1 . . . . 1 . 1 . 1 . . Unknown Exits Taken 6 | 1 1 . 1 1 1 1 . . . . . . . Scrap Searched 4 | . . 1 . 3 . . . . . . . . . Spaces Dug 13 | . . . . . . . . . . . . . 13 Terrain Destroyed 258 | . 25 . 84 . . . . . 2 . 4 58 85 Melee . | . . . . . . . . . . . . . . Projectile 65 | . . . . . . . . . 2 . 4 17 42 AOE 193 | . 25 . 84 . . . . . . . . 41 43 Terrain Rammed . | . . . . . . . . . . . . . . Walls Destroyed . | . . . . . . . . . . . . . . Machines Disabled . | . . . . . . . . . . . . . . Actions | -11 -10 -10 -9 -9 -9 -8 -8 -8 -7 -7 -6 -6 -5 --------- Run | Yrd Mat Min Mat Min Exi Min Mat Gar Fac Gar Fac Gar Fac Total 7062 | . 712 118 833 338 214 152 62 790 568 789 649 885 952 Wait 876 | . 268 9 90 7 . 25 11 95 107 102 63 13 86 Move 5469 | . 392 93 632 322 208 126 42 634 435 587 538 759 701 Hop . | . . . . . . . . . . . . . . Pick Up 45 | . 2 . 18 . 1 . 2 . 3 5 3 3 8 Fast Attach 39 | . 3 . 3 . . . 2 . . 7 4 6 14 Attach 33 | . 2 2 3 . 2 . . . 2 3 1 6 12 Detach 19 | . 1 . . . . . 2 . . 3 . 2 11 Swap 23 | . 5 . 7 2 . 1 . 1 2 2 1 1 1 Drop 64 | . 3 1 11 2 3 . 2 1 3 16 8 10 4 Fire 465 | . 36 13 68 5 . . 1 55 16 64 31 80 96 Melee . | . . . . . . . . . . . . . . Ram 11 | . . . . . . . . . . . . . 11 Kick . | . . . . . . . . . . . . . . Crush 2 | . . . 1 . . . . . . . . 1 . Escape Stasis 16 | . . . . . . . . 4 . . . 4 8 Rewire . | . . . . . . . . . . . . . . Trap . | . . . . . . . . . . . . . . Miscellaneous . | . . . . . . . . . . . . . . Route ------- -11/Scrapyard -10/Materials (discovered 6 exits: Mat x3 / [*Min x2] / *Sub) -10/Mines (discovered 2 exits: *Mat / Sub) -9/Materials (discovered 3 exits: *Mat x2 / [*Min]) -9/Mines (discovered 3 exits: *Mat x2 / *Exi) -9/Exiles -8/Mines -8/Materials (discovered 2 exits: Fac / Gar) -8/Garrison (discovered 3 exits: *Fac x3) -7/Factory -7/Garrison (discovered 3 exits: *Fac x3) -6/Factory -6/Garrison -5/Factory History --------- Turn | Location | Event 1 | -11/Scrapyard | Discovered new exit (range 0) 1 | -11/Scrapyard | Entered Materials 302 | -10/Materials | Build established: Mutant 336 | -10/Materials | Discovered new exit (range 15) 694 | -10/Materials | Repaired EM Pulse Gun 879 | -10/Materials | Destroyed 7 combat bots 921 | -10/Materials | Discovered new exit (range 12) 1155 | -10/Materials | Discovered new exit (range 11) 1176 | -10/Materials | Identified exit to Materials 1215 | -10/Materials | Learned location of Subcaves (-10) 1264 | -10/Materials | Learned location of Mines (-8) 1273 | -10/Materials | Learned 4 Subcaves zone layouts 1284 | -10/Materials | Learned location of 2 exits from Mines 1354 | -10/Materials | Entered Mines 1355 | -10/Mines | Identified exit to Subcaves 1405 | -10/Mines | Assembled infested the area 1633 | -10/Mines | Entered Materials 1633 | -9/Materials | Evolved 2 slots: Utility x2 1956 | -9/Materials | Destroyed 8 combat bots 2316 | -9/Materials | Discovered new exit (range 15) 3217 | -9/Materials | Discovered new exit (range 15) 3407 | -9/Materials | Discovered new exit (range 9) 3429 | -9/Materials | Entered Mines 3498 | -9/Mines | Discovered new exit (range 16) 3671 | -9/Mines | Learned location of 1 exit from Materials 3703 | -9/Mines | Discovered new exit (range 15) 3986 | -9/Mines | Received a Rocket Launcher from a helpful Derelict 4035 | -9/Mines | A weapon hastily lodged in a ceiling crevice suddenly fell to the ground 4133 | -9/Mines | Learned location of Storage (-9) 4171 | -9/Mines | Deemed a non-threat by the Exiles lab entrance 4171 | -9/Mines | Discovered new exit (range 5) 4180 | -9/Mines | Entered Exiles 4234 | -9/Exiles | Met 8R-AWN 4275 | -9/Exiles | Met EX-HEX 4338 | -9/Exiles | Met EX-BIN 4367 | -9/Exiles | Aligned with FarCom system 4369 | -9/Exiles | Given EX-Vault access code 4421 | -9/Exiles | Opened EX-Vault 4436 | -9/Exiles | Found XL Autogun Array 4484 | -9/Exiles | Warned to stay clear of 0b10 Research branches 4517 | -9/Exiles | Exiles lab attacked by MAIN.C 4628 | -9/Exiles | Discovered new exit (range 14) 4653 | -9/Exiles | Left Exiles lab with XL Autogun Array 4653 | -9/Exiles | Entered Mines 4939 | -8/Mines | Discovered new exit (range 8) 4963 | -8/Mines | Entered Materials 4963 | -8/Materials | Evolved 2 slots: Weapon x2 4964 | -8/Materials | Identified exit to Factory 5077 | -8/Materials | Identified exit to Garrison 5077 | -8/Materials | Entered Garrison 5249 | -8/Garrison | Triggered checkpoint 5288 | -8/Garrison | Build established: Tank 5391 | -8/Garrison | Triggered checkpoint 5509 | -8/Garrison | Triggered checkpoint 5533 | -8/Garrison | Discovered exit to Factory (range 10) 5847 | -8/Garrison | Triggered checkpoint 6001 | -8/Garrison | Discovered exit to Factory (range 8) 6099 | -8/Garrison | Triggered checkpoint 6243 | -8/Garrison | Triggered checkpoint 6323 | -8/Garrison | Installed Relay Interface Framework 6364 | -8/Garrison | Discovered exit to Factory (range 10) 6459 | -8/Garrison | Triggered checkpoint 6509 | -8/Garrison | Expanded RIF knowledge: Alert ID Control 6659 | -8/Garrison | Entered Factory 6659 | -7/Factory | Evolved 2 slots: Propulsion x2 7382 | -7/Factory | Garrison activated, responded to threat 7452 | -7/Factory | Identified exit to Garrison 7452 | -7/Factory | Entered Garrison 7522 | -7/Garrison | Triggered checkpoint 7524 | -7/Garrison | Warlord forces raided the area 7559 | -7/Garrison | Garrison Relay disabled 7630 | -7/Garrison | Triggered checkpoint 7632 | -7/Garrison | Triggered checkpoint 7632 | -7/Garrison | Triggered checkpoint 7646 | -7/Garrison | Triggered checkpoint 7702 | -7/Garrison | Lost 8 allies 7772 | -7/Garrison | Discovered new exit (range 10) 7966 | -7/Garrison | Discovered new exit (range 10) 7998 | -7/Garrison | Triggered checkpoint 8014 | -7/Garrison | Garrison Relay disabled 8168 | -7/Garrison | System corruption reached 10% 8286 | -7/Garrison | Discovered new exit (range 81) 8286 | -7/Garrison | Discovered new exit (range 17) 8286 | -7/Garrison | Discovered new exit (range 67) 8370 | -7/Garrison | Triggered checkpoint 8414 | -7/Garrison | Triggered checkpoint 8492 | -7/Garrison | Expanded RIF knowledge: Zone Cloak 8562 | -7/Garrison | Entered Factory 8562 | -6/Factory | Accompanied by 3 allies 8562 | -6/Factory | Evolved 2 slots: Utility x2 8912 | -6/Factory | First assault squad dispatched 9509 | -6/Factory | Identified exit to Garrison 9509 | -6/Factory | Entered Garrison 9628 | -6/Garrison | Triggered checkpoint 9668 | -6/Garrison | Garrison Relay disabled 9879 | -6/Garrison | Triggered checkpoint 9950 | -6/Garrison | Spotted B-75 Beast 9966 | -6/Garrison | Destroyed B-75 Beast 10129 | -6/Garrison | Destroyed 9 combat bots 10303 | -6/Garrison | Triggered checkpoint 10338 | -6/Garrison | Destroyed 8 combat bots 10663 | -6/Garrison | Discovered new exit (range 9) 10815 | -6/Garrison | Expanded RIF knowledge: Watcher Feeds 10970 | -6/Garrison | Entered Factory 10970 | -5/Factory | Evolved 2 slots: Utility x2 11793 | -5/Factory | Spotted B-75 Beast 11870 | -5/Factory | First assault squad dispatched 11961 | -5/Factory | Build established: Scavenger-Skirmisher 12129 | -5/Factory | Released all parts (10) 12151 | -5/Factory | Core integrity fell below 50% 12159 | -5/Factory | Lost 5 parts (1p1u3w) 12224 | -5/Factory | Cargo convoy interrupted 12243 | -5/Factory | Core integrity fell below 20% 12258 | -5/Factory | Destroyed by G-67 Veteran with Plasma Rifle Last Messages --------------- 12186_ WSKD%7 DWBPSA ENRDYFAMNYYNVA=VIZ 12186_ O-16 Technician: "IFF HANDSHAKE FAILED. SECURING TERMINAL." 12197_ ALERT: Hostiles spotted, dispatching reinforcements to Terminal F007. 12202_ Slammed into K-01 Serf. 12202_ K-01 Serf knocked back. 12204_ K-01 Serf cleans the Power Conduit. 12207_ ALERT: Significant disruption in Zone 9V, assault force dispatched. 12207_ Slammed into K-01 Serf. 12211_ Slammed into R-10 Processor. 12217_ Slammed into K-01 Serf. 12218_ Slammed into R-10 Processor. 12219_ Destabilizing: System corrupted (+1). 12220_ Slammed into R-10 Processor. 12224_ ALERT: Cargo convoy interrupted, initiating access lockdown. 12234_ Slug penetrates Wall. 12234_ Penetrated by Slug. Map ----- +----------------------------------------------------+ | ????????????????????????????????????? | | ????????????????????????????????????? | | ????????????????????????????????????? | | ????????????????????????????????????? | | ????????????????????????????????????? | | ????????????????????????????????????? | | ????????????????????????????????????? | | ????????????????????????????????????? | | ????????????????????????????????????? | | ????????????????????????????????????? | | ????????????????????????????????????? | | ????????????????????????????????????? | | ????????????????????????????????????? | | ????????????????????????????????????? | | ????????????????????????????????????? | | ????????????????????????????????????? | | ????????????????????????????????????? | | ????????????????????????????g???????? | | ????????????????????????????????????? | | ????????????????????????????g???????? | | ?????????????????????????g??????????? | | ??????????################g##???????? | | ??????????# g s ??????? | | ??????????# s ??????? | | ??????????# s #?????? | | ??????????# @ s #?????? | | ??????????# #?????? | | ??????????# ######### ??????? | | ??????????# #???????????????????? | | ??????????# #???????????????????? | | ??????????# ##??????????????????? | | ??????????# ##??????????????????? | | ??????????# #???????????????????? | | ??????????# #???????????????????? | | ?########## #???????????????????? | | ?# # #?########??????????? | | ?# # #? """??????????? | | ?# = * # # """??????????? | | ?# # # """ ????????? | | ?# + p/ #??????? | | ?# """""" # p # ! #??????? | | ?# """""" # w#############???????? | | ?# """""" # # #??????????? | | ?# """""" # # #??????????? | | ?#??####### # #??????????? | | ??????????# # #??????????? | | ??????????# + #??????????? | | ??????????# # #??????????? | | ??????????# # ! #??????????? | | ??????????# # ! #??????????? | +----------------------------------------------------+ Best States ------------- Heat Dissipation 59 Coolant Potential 65 Energy Generation 19 Energy Capacity 315 Matter Stores 300 Matter Capacity 300 Sight Range 22 Terrain Scan Density 10 Jamming Range 14 Armor Coverage 1200 Evasion (%) 55 Core Analysis 6 Recoil Reduction 4 Relay Coupler Types 1 Relay Coupler Value 21 Item Schematics ----------------- None Robot Schematics ------------------ None Fabricated ------------ Nothing Alien Tech Used ----------------- None Achievements -------------- Gunslinger Challenges ------------ None Game ------ Seed GravityNovaPrototype Manual? 0 Play Time 02:06:23 Cumulative 68.2 hours Start 2024.10.22 @ 15:16:40 End 2024.10.22 @ 16:29:18 Sessions 1 Manual Loads 0 Difficulty Rogue Special Mode None Game No. 63 Rogue 45 Adventurer 16 Explorer 2 Win Type - Total 1 Types 1/0/0/0/0/0/0/0/0 Lore% 15 Gallery% 44 Achievement% 38 Wizard Run 0 Options --------- Layout 2 ASCII 0 Keyboard 0 Movement Mouse Keybinds 1 Fullscreen 2 Font 24/Terminus Map View 50x44 Zoom Use 0% Tactical HUD 1 Map Filters NONE Filters NONE Steam X RUN: e5a372f0-2c9a-4165-9741-b7a74aaf62f6